Cogmind - Beta 17 @@@ ROGUE MODE // 2026.07.13 @ 17:03:49 Player: Skysub Result: Escaped! Performance ------------- Evolutions (9) 4500 Regions Visited (18) 3600 Robots Destroyed (16) 80 Value Destroyed (324) 324 Prototype IDs (8) 160 Alien Tech Used (0) 0 Bonus (30504) 30504 TOTAL SCORE: 39168 Bonus ------- Pacifist 1987 Entered DSFs 2000 Win 3000 Win Speed 23517 Cogmind --------- Core Integrity 1447/1600 Matter 136/300 Energy 178/190 System Corruption 2% Temperature Cool (21) Movement Flying (17) Location To Epsilon Eridani Parts ------- > --- POWER (3) -------- Light Quantum Reactor > --- PROPULSION (10) -- Improved VTOL Module Improved VTOL Module Improved VTOL Module Nuclear Pulse Thruster Nuclear Pulse Thruster Biomechanical Wings Nuclear Pulse Array Improved Q-thruster > --- UTILITY (10) ----- Medium Storage Unit Gravity Neutralizer Advanced Terrain Scanner Improved Heavy Armor Plating Advanced System Shield > --- WEAPON (2) ------- Scythe > --- INVENTORY (10) --- Light Angular Momentum Engine Neutrino Core Nuclear Pulse Array Nuclear Pulse Array Advanced Signal Interpreter Stasis Canceller Rocket Launcher Peak State ------------ > --- POWER ------------ Light Deuterium Engine Light Angular Momentum Engine Light Quantum Reactor > --- PROPULSION ------- Improved VTOL Module Improved VTOL Module Improved VTOL Module Nuclear Pulse Thruster Nuclear Pulse Thruster Biomechanical Wings Nuclear Pulse Array Q-thruster Improved Q-thruster > --- UTILITY ---------- Medium Storage Unit Gravity Neutralizer Advanced Terrain Scanner Improved Heavy Armor Plating Advanced System Shield > --- WEAPON ----------- Scythe > --- INVENTORY -------- Neutrino Core Nuclear Pulse Array Nuclear Pulse Array Advanced Signal Interpreter Stasis Canceller Rocket Launcher [Rating: 110] Favorites ----------- Power Micro Nuclear Core Engine Light Angular Momentum Engine Power Core Micro Nuclear Core Reactor Light Particle Reactor Propulsion Improved VTOL Module Hover Unit Backup Propulsion I Flight Unit Improved VTOL Module Utility Medium Storage Unit Device Structural Scanner Storage Medium Storage Unit Processor Advanced Signal Interpreter Hackware Advanced System Shield Protection Improved Propulsion Shielding Weapon Scythe Launcher Rocket Launcher Slashing Weapon Scythe Build | -11 -10 -9 -8 -7 -7 -6 -6 -6 -6 -5 -5 -5 -5 -4 -3 -3 -2 -1 ------- Run | Yrd Mat Mat Mat Fac DSF Fac Was Fac DSF Fac Was Fac DSF Fac Res DSF Res Acc Slots Evolved 18 | . . 2 2 2 . 2 . . . 2 . . . 2 2 . 2 2 Power 2 | . . . . 1 . . . . . . . . . . 1 . . . Propulsion 8 | . . 1 2 1 . 1 . . . 1 . . . 1 . . 1 . Utility 8 | . . 1 . . . 1 . . . 1 . . . 1 1 . 1 2 Weapon . | . . . . . . . . . . . . . . . . . . . Parts Attached 57 | . 1 5 6 3 10 5 . . 1 9 1 . 1 2 5 . 1 7 Power 12 | . 1 1 1 . 4 . . . . 1 . . . . 2 . . 2 Engine 5 | . 1 1 1 . . . . . . . . . . . 1 . . 1 Core 5 | . . . . . 4 . . . . 1 . . . . . . . . Reactor 2 | . . . . . . . . . . . . . . . 1 . . 1 Propulsion 19 | . . 3 3 3 . 3 . . . 1 . . . 1 1 . . 4 Treads . | . . . . . . . . . . . . . . . . . . . Leg . | . . . . . . . . . . . . . . . . . . . Wheel . | . . . . . . . . . . . . . . . . . . . Hover . | . . . . . . . . . . . . . . . . . . . Flight 19 | . . 3 3 3 . 3 . . . 1 . . . 1 1 . . 4 Utility 23 | . . . 2 . 6 2 . . 1 6 . . 1 1 2 . 1 1 Device 8 | . . . 1 . 1 . . . 1 3 . . . 1 1 . . . Storage 1 | . . . . . 1 . . . . . . . . . . . . . Processor 1 | . . . . . . . . . . 1 . . . . . . . . Hackware 3 | . . . . . . . . . . 2 . . . . 1 . . . Protection 10 | . . . 1 . 4 2 . . . . . . 1 . . . 1 1 Artifact . | . . . . . . . . . . . . . . . . . . . Weapon 3 | . . 1 . . . . . . . 1 1 . . . . . . . Energy Gun . | . . . . . . . . . . . . . . . . . . . Energy Cannon . | . . . . . . . . . . . . . . . . . . . Ballistic Gun . | . . . . . . . . . . . . . . . . . . . Ballistic Cannon . | . . . . . . . . . . . . . . . . . . . Launcher 2 | . . . . . . . . . . 1 1 . . . . . . . Special Weapon . | . . . . . . . . . . . . . . . . . . . Impact Weapon . | . . . . . . . . . . . . . . . . . . . Slashing Weapon 1 | . . 1 . . . . . . . . . . . . . . . . Piercing Weapon . | . . . . . . . . . . . . . . . . . . . Special Melee Weapon . | . . . . . . . . . . . . . . . . . . . Unidentified Prototypes 7 | . 1 . 1 . . 1 . . . . 1 . . . 1 . . 2 Parts Lost 17 | . . . . . . . . . 1 1 . . 1 1 . . 11 2 Power 4 | . . . . . . . . . . 1 . . . 1 . . 1 1 Propulsion 5 | . . . . . . . . . . . . . . . . . 4 1 Utility 8 | . . . . . . . . . 1 . . . 1 . . . 6 . Weapon . | . . . . . . . . . . . . . . . . . . . Highest Loss Streak 11 | . . . . . . . . . 1 1 . . 1 1 . . 11 2 To Critical Strikes . | . . . . . . . . . . . . . . . . . . . Average Backups 6 | . 2 4 3 3 4 6 10 10 10 9 9 9 9 6 7 9 7 6 Power . | . 1 1 1 . . . . . . . . . . . . 1 . 1 Propulsion 1 | . . . 1 2 1 2 5 5 5 2 2 2 2 1 1 2 1 1 Utility 3 | . . 1 . . 1 3 4 4 4 5 6 6 6 4 4 5 4 2 Weapon 1 | . . 1 1 1 1 1 1 1 1 . 1 1 1 1 1 1 1 1 Tool/Special . | . . . . . . . . . . . . . . . . . . . Unused Backups 8 | . . . . . 1 . . . . 3 . . . . . . . 4 Power . | . . . . . . . . . . . . . . . . . . . Propulsion 4 | . . . . . . . . . . 2 . . . . . . . 2 Utility 3 | . . . . . . . . . . 1 . . . . . . . 2 Weapon 1 | . . . . . 1 . . . . . . . . . . . . . Tool/Special . | . . . . . . . . . . . . . . . . . . . Average Slot Usage (%) 77 | . . 58 85 88 86 85 93 93 93 90 94 94 92 88 86 90 92 62 Engine 3 | . . 9 9 15 8 . . . . . . . . . 3 4 4 6 Core 5 | . . . . . 6 13 13 13 13 8 11 11 11 7 1 . 3 . Flight 38 | . . 20 43 42 46 46 46 46 46 47 47 47 47 45 42 42 43 32 Device 6 | . . . 6 7 6 5 6 6 6 5 11 11 5 10 9 9 12 7 Storage 3 | . . . . . 1 6 6 6 6 5 5 5 5 5 4 4 4 4 Hackware 3 | . . . . . . . . . . 3 11 11 9 5 7 9 5 4 Protection 8 | . . 18 18 15 13 9 13 13 13 8 . . 5 7 9 9 10 3 Slashing Weapon 4 | . . 4 9 7 3 3 6 6 6 5 5 5 5 5 4 4 4 2 Peak Build Rating 110 | . 3 15 28 33 41 59 59 59 61 77 82 73 75 81 98 93 108 110 Average Rating 61 | . . 10 25 32 36 50 59 59 58 68 73 73 71 78 88 93 103 95 On Entrance 50 | . . . 15 28 33 36 59 59 59 61 73 73 73 68 76 93 93 57 Avg Prop Armor Cover (%) 2 | . . 4 . . . . . . . 2 . . . . . . 4 . Naked Turns 80 | . 75 5 . . . . . . . . . . . . . . . . Heaviest Build 62 | . . 7 20 23 30 34 34 34 34 39 34 34 41 42 46 46 62 57 Greatest Support 70 | 3 3 14 25 30 30 38 38 38 38 44 44 44 44 50 53 53 70 63 Greatest Overweight (x) . | . . . . . . . . . . . . . . . . . . . Average Overweight (x) . | . . . . . . . . . . . . . . . . . . . Largest Inventory Capacity 10 | 5 5 5 5 5 10 10 10 10 10 10 10 10 10 10 10 10 10 10 Average Capacity 8 | 5 5 5 5 5 5 10 10 10 10 10 10 10 10 10 10 10 10 10 Most Carried 10 | 1 4 5 5 4 7 10 10 10 10 10 10 10 10 9 10 10 10 10 Average Carried 7 | . 2 4 3 3 4 7 10 10 10 9 10 10 10 7 8 10 8 7 Final Capacity 10 | 5 5 5 5 5 10 10 10 10 10 10 10 10 10 10 10 10 10 10 Final Carried 10 | 1 4 5 5 3 7 10 10 10 10 10 10 10 10 7 10 10 10 9 Class Distribution -------------------- 54% | Sprinter 24% | Mutant 20% | Hacker-Sprinter Dominant Class ---------------- Mutant | -10/Materials Sprinter | -9/Materials Sprinter | -8/Materials Sprinter | -7/Factory Sprinter | -7/DSF Mutant | -6/Factory Sprinter | -6/Waste Sprinter | -6/Factory Sprinter | -6/DSF Sprinter | -5/Factory Hacker-Sprinter | -5/Waste Hacker-Sprinter | -5/Factory Hacker-Sprinter | -5/DSF Hacker-Sprinter | -4/Factory Hacker-Sprinter | -3/Research Hacker-Sprinter | -3/DSF Sprinter | -2/Research Sprinter | -1/Access Resources | -11 -10 -9 -8 -7 -7 -6 -6 -6 -6 -5 -5 -5 -5 -4 -3 -3 -2 -1 ----------- Run | Yrd Mat Mat Mat Fac DSF Fac Was Fac DSF Fac Was Fac DSF Fac Res DSF Res Acc Matter Collected 827 | 200 13 . . . 68 . . . . 354 . . 2 21 31 . 138 . Remotely . | . . . . . . . . . . . . . . . . . . . Salvage Created 454 | . . . . . . . . . . 379 . . . 21 31 . 23 . Parts 32 | . . . . . . . . . . 24 . . . 3 3 . 2 . Haulers Intercepted . | . . . . . . . . . . . . . . . . . . . Recyclers Shooed . | . . . . . . . . . . . . . . . . . . . Parts Field Recycled . | . . . . . . . . . . . . . . . . . . . Retrieved Matter . | . . . . . . . . . . . . . . . . . . . Parts Self-Destructed . | . . . . . . . . . . . . . . . . . . . Prevented . | . . . . . . . . . . . . . . . . . . . Parts Restored . | . . . . . . . . . . . . . . . . . . . Kills | -11 -10 -9 -8 -7 -7 -6 -6 -6 -6 -5 -5 -5 -5 -4 -3 -3 -2 -1 ------- Run | Yrd Mat Mat Mat Fac DSF Fac Was Fac DSF Fac Was Fac DSF Fac Res DSF Res Acc Combat Hostiles Destroyed 5 | . . . . . . . . . . 5 . . . . . . . . AOE 5 | . . . . . . . . . . 5 . . . . . . . . Classes Destroyed 5 | . . . . . . . . . . 4 . . . . 1 . . . Worker 2 | . . . . . . . . . . 2 . . . . . . . . Builder 5 | . . . . . . . . . . 4 . . . 1 . . . . Recycler 2 | . . . . . . . . . . 2 . . . . . . . . Operator 2 | . . . . . . . . . . . . . . . 1 . 1 . Swarmer 5 | . . . . . . . . . . 5 . . . . . . . . Best Kill Streak 8 | . . . . . . . . . . 8 . . . 1 1 . . . Combat Bots Only 5 | . . . . . . . . . . 5 . . . . . . . . Max Kills in Single Turn 3 | . . . . . . . . . . 3 . . . 1 1 . 1 . Gunslinging . | . . . . . . . . . . . . . . . . . . . Exploded 3 | . . . . . . . . . . 3 . . . . . . . . Melee . | . . . . . . . . . . . . . . . . . . . Uniques/NPCs Destroyed . | . . . . . . . . . . . . . . . . . . . Combat | -11 -10 -9 -8 -7 -7 -6 -6 -6 -6 -5 -5 -5 -5 -4 -3 -3 -2 -1 -------- Run | Yrd Mat Mat Mat Fac DSF Fac Was Fac DSF Fac Was Fac DSF Fac Res DSF Res Acc Hostile Shots Fired 274 | . 11 4 24 . . 12 . . 3 31 . . 4 17 2 1 78 87 Missed 132 | . 4 3 13 . . 7 . . 1 17 . . 1 8 . . 31 47 Hits 142 | . 7 1 11 . . 5 . . 2 14 . . 3 9 2 1 47 40 Projectile 142 | . 7 1 11 . . 5 . . 2 14 . . 3 9 2 1 47 40 AOE 2 | . . . . . . . . . . . . . 2 . . . . . Critical Strikes 8 | . . . . . . . . . 1 . . . . 1 . . 5 1 Actively Blocked 2 | . . . . . . . . . . . . . . . . . 2 . Damage Taken 3099 | . 83 12 144 . . 158 . . 109 251 . . 180 188 54 76 1128 716 Core 716 | . 83 . 28 . . 36 . . 63 35 . . 93 22 . . 203 153 Absorbed by Shields . | . . . . . . . . . . . . . . . . . . . Redirected to Shielding 280 | . . . . . . 25 . . . 35 . . 21 25 . . 174 . Core Remaining (%) 91 | 100 66 100 94 . 100 . . . 88 . . . 87 98 . 100 86 90 Volleys Fired 4 | . . . . . . . . . . 4 . . . . . . . . Largest 1 | . . . . . . . . . . 1 . . . . . . . . Hottest 33 | . . . . . . . . . . 33 . . . . . . . . Shots Fired 4 | . . . . . . . . . . 4 . . . . . . . . Gun . | . . . . . . . . . . . . . . . . . . . Cannon . | . . . . . . . . . . . . . . . . . . . Launcher 4 | . . . . . . . . . . 4 . . . . . . . . Special . | . . . . . . . . . . . . . . . . . . . Kinetic . | . . . . . . . . . . . . . . . . . . . Thermal . | . . . . . . . . . . . . . . . . . . . Explosive 4 | . . . . . . . . . . 4 . . . . . . . . Electromagnetic . | . . . . . . . . . . . . . . . . . . . Robot Hit Streak . | . . . . . . . . . . . . . . . . . . . Robot Miss Streak . | . . . . . . . . . . . . . . . . . . . Penetration Max . | . . . . . . . . . . . . . . . . . . . Secondary Targets . | . . . . . . . . . . . . . . . . . . . Shots Hit Robots 17 | . . . . . . . . . . 14 . . . 1 1 . 1 . Core Hits 17 | . . . . . . . . . . 14 . . . 1 1 . 1 . Critical Kills . | . . . . . . . . . . . . . . . . . . . Critical Parts Destroyed . | . . . . . . . . . . . . . . . . . . . Critical Strikes . | . . . . . . . . . . . . . . . . . . . Melee Attacks 56 | . . . . . . . . . . 31 . 4 . 5 7 . 2 7 Impact . | . . . . . . . . . . . . . . . . . . . Slashing 56 | . . . . . . . . . . 31 . 4 . 5 7 . 2 7 Piercing . | . . . . . . . . . . . . . . . . . . . Sneak Attacks 10 | . . . . . . . . . . 8 . . . 1 . . 1 . Combat Hostiles . | . . . . . . . . . . . . . . . . . . . Follow-up Attacks . | . . . . . . . . . . . . . . . . . . . Damage Inflicted 1558 | . 7 . . . . . . . . 1329 . . . 74 51 . 97 . Guns . | . . . . . . . . . . . . . . . . . . . Cannons . | . . . . . . . . . . . . . . . . . . . Explosions 501 | . . . . . . . . . . 501 . . . . . . . . Melee 1033 | . . . . . . . . . . 828 . . . 74 51 . 80 . Ramming 24 | . 7 . . . . . . . . . . . . . . . 17 . Kinetic . | . . . . . . . . . . . . . . . . . . . Thermal . | . . . . . . . . . . . . . . . . . . . Explosive 501 | . . . . . . . . . . 501 . . . . . . . . Electromagnetic . | . . . . . . . . . . . . . . . . . . . Impact . | . . . . . . . . . . . . . . . . . . . Slashing 1033 | . . . . . . . . . . 828 . . . 74 51 . 80 . Piercing . | . . . . . . . . . . . . . . . . . . . Highest Corruption 5 | . 5 . . . . . . . . 1 1 1 3 . . . 1 2 Average Corruption 2 | . 5 . . . . . . . . 1 1 1 1 . . . 1 2 Corruption Purged . | . . . . . . . . . . . . . . . . . . . Corruption Blocked . | . . . . . . . . . . . . . . . . . . . Effects 2 | . 1 . . . . . . . . . . . . . . . . 1 Message Errors 1 | . . . . . . . . . . . . . . . . . . 1 Matter Fused 1 | . 1 . . . . . . . . . . . . . . . . . Overload Shots . | . . . . . . . . . . . . . . . . . . . Overflow Damage 201 | . . . . . . . . . . 201 . . . . . . . . Projectiles . | . . . . . . . . . . . . . . . . . . . Explosions 25 | . . . . . . . . . . 25 . . . . . . . . Melee 176 | . . . . . . . . . . 176 . . . . . . . . Knockbacks . | . . . . . . . . . . . . . . . . . . . Impact . | . . . . . . . . . . . . . . . . . . . Kinetic . | . . . . . . . . . . . . . . . . . . . Secondary . | . . . . . . . . . . . . . . . . . . . Self-Inflicted Damage 11 | . 3 . . . . . . . . . . . . . . . 8 . Shots . | . . . . . . . . . . . . . . . . . . . Rammed 6 | . 3 . . . . . . . . . . . . 1 . . 2 . Targets Rammed 6 | . 3 . . . . . . . . . . . . 1 . . 2 . Kicked . | . . . . . . . . . . . . . . . . . . . Crushed . | . . . . . . . . . . . . . . . . . . . Highest Temperature 436 | . . . 33 22 . 308 239 239 3 345 196 123 59 194 199 88 258 436 Average Temperature 122 | . . . 12 15 . 115 127 127 3 122 135 73 24 127 117 55 149 150 Received Heat Transfer 456 | . 42 6 18 . . 51 . . . 81 . . . 33 9 . 216 . Effects 5 | . . . . . . 1 . . . 2 . . . . . . . 2 Shutdowns 3 | . . . . . . . . . . 2 . . . . . . . 1 Energy Bleed 1 | . . . . . . 1 . . . . . . . . . . . . Interference 1 | . . . . . . . . . . . . . . . . . . 1 Siege Activations . | . . . . . . . . . . . . . . . . . . . Martial Activations . | . . . . . . . . . . . . . . . . . . . Shielding Activations . | . . . . . . . . . . . . . . . . . . . Robots Disrupted . | . . . . . . . . . . . . . . . . . . . Combat Hostiles . | . . . . . . . . . . . . . . . . . . . Robots Corrupted . | . . . . . . . . . . . . . . . . . . . Combat Hostiles . | . . . . . . . . . . . . . . . . . . . Parts Fried . | . . . . . . . . . . . . . . . . . . . Impact Corruptions . | . . . . . . . . . . . . . . . . . . . Robots Melted . | . . . . . . . . . . . . . . . . . . . Combat Hostiles . | . . . . . . . . . . . . . . . . . . . Parts Melted . | . . . . . . . . . . . . . . . . . . . Heat Transferred . | . . . . . . . . . . . . . . . . . . . Parts Sabotaged . | . . . . . . . . . . . . . . . . . . . Parts Stolen . | . . . . . . . . . . . . . . . . . . . Parts Stripped . | . . . . . . . . . . . . . . . . . . . Power Chain Reactions . | . . . . . . . . . . . . . . . . . . . Alert | -11 -10 -9 -8 -7 -7 -6 -6 -6 -6 -5 -5 -5 -5 -4 -3 -3 -2 -1 ------- Run | Yrd Mat Mat Mat Fac DSF Fac Was Fac DSF Fac Was Fac DSF Fac Res DSF Res Acc Maximum Alert Level 2 | . . . . . . . . . . 2 . . . . . . 1 1 Low Security (%) 68 | 100 100 100 100 100 100 100 100 100 100 37 100 100 100 100 100 100 57 . Level 1 19 | . . . . . . . . . . 11 . . . . . . 42 100 Level 2 12 | . . . . . . . . . . 50 . . . . . . . . Level 3 . | . . . . . . . . . . . . . . . . . . . Level 4 . | . . . . . . . . . . . . . . . . . . . Level 5 . | . . . . . . . . . . . . . . . . . . . High Security . | . . . . . . . . . . . . . . . . . . . Max Security . | . . . . . . . . . . . . . . . . . . . Peak Influence 544 | . 15 15 90 36 25 67 18 12 8 544 190 141 98 133 115 78 395 277 Initial 221 | . . 5 1 36 25 12 18 12 8 . 190 133 98 46 69 78 43 221 Average 144 | . 2 5 24 36 25 37 18 12 1 307 190 136 94 73 84 78 183 247 Influence Increases 1685 | . 15 21 90 . . 80 . . . 674 . 8 . 137 66 . 477 117 Destroy 0b10 Robot/C 100 | . . . . . . . . . . 100 . . . . . . . . Destroy 0b10 Robot/NC 50 | . . . . . . . . . . 40 . . . 5 5 . . . Destroy Leader 10 | . . . . . . . . . . 10 . . . . . . . . Successful Hack 222 | . . 6 . . . 5 . . . 79 . . . 6 12 . 114 . Select Force Hacks 30 | . . . . . . . . . . . . . . . . . 30 . Disable Machine 165 | . . . . . . . . . . 135 . . . . 15 . . 15 Destroy Structure 163 | . . . . . . . . . . 130 . 8 . 6 4 . 3 12 Partial Spotted 225 | . . 15 . . . 30 . . . 45 . . . 60 30 . 45 . Lose Combat Pursuer 720 | . 15 . 90 . . 45 . . . 135 . . . 60 . . 285 90 Influence Decreases 1427 | . . 31 15 44 11 53 34 6 12 130 354 57 53 92 94 27 185 229 Entered New Map 897 | . . 10 4 44 11 13 34 6 4 . 354 57 43 42 64 27 35 149 Time Decay 342 | . . 21 11 . . 40 . . . 120 . . . 20 30 . 40 60 Lost Part 168 | . . . . . . . . . 8 10 . . 10 10 . . 110 20 Lost Ally 20 | . . . . . . . . . . . . . . 20 . . . . Squads Dispatched 35 | . 3 . 1 . 1 2 . 1 . 8 . . 1 1 3 . 9 5 Investigation 27 | . 2 . 1 . . 2 . 1 . 7 . . . 1 3 . 8 2 Extermination 2 | . . . . . . . . . . . . . . . . . 1 1 Reinforcement 6 | . 1 . . . 1 . . . . 1 . . 1 . . . . 2 Assault . | . . . . . . . . . . . . . . . . . . . Garrison . | . . . . . . . . . . . . . . . . . . . Intercept . | . . . . . . . . . . . . . . . . . . . Searches Triggered . | . . . . . . . . . . . . . . . . . . . Construction Impeded 1 | . . . . . . . . . . 1 . . . . . . . . Haulers Reinforced . | . . . . . . . . . . . . . . . . . . . Active Scanning Responses . | . . . . . . . . . . . . . . . . . . . Cargo Convoy Interrupts . | . . . . . . . . . . . . . . . . . . . Stealth | -11 -10 -9 -8 -7 -7 -6 -6 -6 -6 -5 -5 -5 -5 -4 -3 -3 -2 -1 --------- Run | Yrd Mat Mat Mat Fac DSF Fac Was Fac DSF Fac Was Fac DSF Fac Res DSF Res Acc Distress Signals 6 | . . 1 . . . . . . . 2 . . . . . . 3 . Communications Jammed . | . . . . . . . . . . . . . . . . . . . Distress Signals . | . . . . . . . . . . . . . . . . . . . Times Spotted 154 | . 8 7 14 . 1 9 4 1 1 27 4 4 3 18 4 1 39 9 Peak Tracking Total 29 | . 6 7 14 . 1 6 4 1 1 11 4 4 3 13 8 1 29 7 Tactical Retreats 13 | . 1 . 1 . . 1 . . . 3 . . . 1 . . 4 2 Traps | -11 -10 -9 -8 -7 -7 -6 -6 -6 -6 -5 -5 -5 -5 -4 -3 -3 -2 -1 ------- Run | Yrd Mat Mat Mat Fac DSF Fac Was Fac DSF Fac Was Fac DSF Fac Res DSF Res Acc Traps Triggered 10 | . . . . . . 2 . . 1 3 . . 1 1 . . 2 . Indirectly . | . . . . . . . . . . . . . . . . . . . Trap Hack Attempts . | . . . . . . . . . . . . . . . . . . . Triggered . | . . . . . . . . . . . . . . . . . . . Disarmed . | . . . . . . . . . . . . . . . . . . . Reprogrammed . | . . . . . . . . . . . . . . . . . . . Reused . | . . . . . . . . . . . . . . . . . . . Traps Extracted . | . . . . . . . . . . . . . . . . . . . Installed . | . . . . . . . . . . . . . . . . . . . Triggered . | . . . . . . . . . . . . . . . . . . . Machines | -11 -10 -9 -8 -7 -7 -6 -6 -6 -6 -5 -5 -5 -5 -4 -3 -3 -2 -1 ---------- Run | Yrd Mat Mat Mat Fac DSF Fac Was Fac DSF Fac Was Fac DSF Fac Res DSF Res Acc Machines Disabled 11 | . . . . . . . . . . 9 . . . . 1 . . 1 Max in Single Turn 4 | . . . . . . . . . . 4 . . . . 1 . . 1 Machines Repaired . | . . . . . . . . . . . . . . . . . . . Machines Dismantled . | . . . . . . . . . . . . . . . . . . . Machines Sabotaged . | . . . . . . . . . . . . . . . . . . . Overloaded Fab Kills . | . . . . . . . . . . . . . . . . . . . Hacking | -11 -10 -9 -8 -7 -7 -6 -6 -6 -6 -5 -5 -5 -5 -4 -3 -3 -2 -1 --------- Run | Yrd Mat Mat Mat Fac DSF Fac Was Fac DSF Fac Was Fac DSF Fac Res DSF Res Acc Machines Accessed 36 | . 3 1 2 1 . 2 . 1 . 9 . 1 . 2 4 . 8 2 Terminals 27 | . 3 . 2 1 . 1 . 1 . 6 . 1 . 1 2 . 7 2 Fabricators 1 | . . . . . . . . . . 1 . . . . . . . . Repair Stations 2 | . . 1 . . . . . . . . . . . . 1 . . . Recycling Units 2 | . . . . . . . . . . 1 . . . 1 . . . . Scanalyzers 4 | . . . . . . 1 . . . 1 . . . . 1 . 1 . Garrison Access . | . . . . . . . . . . . . . . . . . . . Total Hacks 133 | . 11 3 6 2 . 10 . 3 . 34 . 1 . 9 13 . 35 6 Successful 44 | . 4 1 1 1 . 2 . 1 . 12 . 1 . 6 2 . 13 . Failed 88 | . 7 2 5 1 . 8 . 2 . 22 . . . 3 11 . 21 6 Catastrophic 30 | . 4 1 2 . . 2 . . . 9 . . . . 2 . 8 2 Database Lockouts 1 | . . . . . . . . . . . . . . . . . 1 . Manual 55 | . 11 . 4 . . 4 . . . 18 . . . 3 . . 12 3 Terminals 92 | . 11 . 6 2 . 4 . 3 . 22 . 1 . 5 4 . 28 6 Fabricators 4 | . . . . . . . . . . 4 . . . . . . . . Repair Stations 6 | . . 3 . . . . . . . . . . . . 3 . . . Recycling Units 8 | . . . . . . . . . . 4 . . . 4 . . . . Scanalyzers 23 | . . . . . . 6 . . . 4 . . . . 6 . 7 . Garrison Access . | . . . . . . . . . . . . . . . . . . . Terminal Hacks 17 | . 1 . . 1 . . . 1 . 3 . 1 . 3 1 . 6 . Open DSF 4 | . . . . 1 . . . 1 . . . 1 . . 1 . . . Branch Access Points 2 | . . . . . . . . . . 1 . . . . . . 1 . Terminal Index 5 | . 1 . . . . . . . . 1 . . . 1 . . 2 . Locate Traps 1 | . . . . . . . . . . . . . . 1 . . . . Registered Components 1 | . . . . . . . . . . . . . . . . . 1 . Zone Layout 4 | . . . . . . . . . . 1 . . . 1 . . 2 . Fabricator Hacks 1 | . . . . . . . . . . 1 . . . . . . . . Network Status 1 | . . . . . . . . . . 1 . . . . . . . . Repair Station Hacks 1 | . . 1 . . . . . . . . . . . . . . . . Refit 1 | . . 1 . . . . . . . . . . . . . . . . Recycling Unit Hacks 4 | . . . . . . . . . . 2 . . . 2 . . . . Process 1 | . . . . . . . . . . 1 . . . . . . . . Report Inventory 2 | . . . . . . . . . . 1 . . . 1 . . . . Retrieve Components 1 | . . . . . . . . . . . . . . 1 . . . . Scanalyzer 4 | . . . . . . 1 . . . . . . . . 1 . 2 . Retrieve Study 4 | . . . . . . 1 . . . . . . . . 1 . 2 . Garrison Access Hacks . | . . . . . . . . . . . . . . . . . . . Unauthorized Hacks 17 | . 3 . 1 . . 1 . . . 6 . . . 1 . . 5 . Terminals 12 | . 3 . 1 . . 1 . . . 3 . . . 1 . . 3 . Assimilate 2 | . . . . . . . . . . 1 . . . . . . 1 . Botnet 10 | . 3 . 1 . . 1 . . . 2 . . . 1 . . 2 . Fabricators 3 | . . . . . . . . . . 3 . . . . . . . . Report 1 | . . . . . . . . . . 1 . . . . . . . . Liberate 1 | . . . . . . . . . . 1 . . . . . . . . Fabnet 1 | . . . . . . . . . . 1 . . . . . . . . Repair Stations . | . . . . . . . . . . . . . . . . . . . Recycling Units . | . . . . . . . . . . . . . . . . . . . Scanalyzers 2 | . . . . . . . . . . . . . . . . . 2 . Researchers 1 | . . . . . . . . . . . . . . . . . 1 . Extract 1 | . . . . . . . . . . . . . . . . . 1 . Garrison Access . | . . . . . . . . . . . . . . . . . . . Data Cores Recovered 1 | . . . . . . . . . . . . . . . 1 . . . Used 1 | . . . . . . . . . . . . . . . 1 . . . Hacking Detections 34 | . 3 1 2 1 . 2 . 1 . 8 . 1 . 2 3 . 8 2 Full Trace Events 27 | . 3 . 2 . . 2 . 1 . 7 . . . 1 3 . 6 2 Feedback Events 2 | . . . . . . . . . . 1 . . . . . . 1 . Corruption 1 | . . . . . . . . . . 1 . . . . . . . . Hackware Fried 1 | . . . . . . . . . . . . . . . . . 1 . Feedback Blocked . | . . . . . . . . . . . . . . . . . . . Robot Schematics Acquired . | . . . . . . . . . . . . . . . . . . . Robots Built . | . . . . . . . . . . . . . . . . . . . Authchips . | . . . . . . . . . . . . . . . . . . . Time . | . . . . . . . . . . . . . . . . . . . Total Robot Build Rating . | . . . . . . . . . . . . . . . . . . . Part Schematics Acquired 5 | . . . . . . . . . . . . . . . . . 5 . Parts Built . | . . . . . . . . . . . . . . . . . . . Authchips . | . . . . . . . . . . . . . . . . . . . Time . | . . . . . . . . . . . . . . . . . . . Total Part Build Rating . | . . . . . . . . . . . . . . . . . . . Part Studies Acquired 4 | . . . . . . 1 . . . . . . . . 1 . 2 . Parts Repaired . | . . . . . . . . . . . . . . . . . . . Time . | . . . . . . . . . . . . . . . . . . . Parts Recycled . | . . . . . . . . . . . . . . . . . . . Recycled Matter 12 | . . . . . . . . . . 12 . . . . . . . . Retrieved Matter . | . . . . . . . . . . . . . . . . . . . Retrieved Components 3 | . . . . . . . . . . . . . . 3 . . . . Parts Scanalyzed . | . . . . . . . . . . . . . . . . . . . Part Schematics Acquired . | . . . . . . . . . . . . . . . . . . . Parts Damaged . | . . . . . . . . . . . . . . . . . . . Bothacking | -11 -10 -9 -8 -7 -7 -6 -6 -6 -6 -5 -5 -5 -5 -4 -3 -3 -2 -1 ------------ Run | Yrd Mat Mat Mat Fac DSF Fac Was Fac DSF Fac Was Fac DSF Fac Res DSF Res Acc Used RIF Installer . | . . . . . . . . . . . . . . . . . . . Robots Hacked 1 | . . . . . . . . . . . . . . 1 . . . . Non-combat . | . . . . . . . . . . . . . . . . . . . Combat 1 | . . . . . . . . . . . . . . 1 . . . . Robot Hacks Applied . | . . . . . . . . . . . . . . . . . . . Relay Couplers Released . | . . . . . . . . . . . . . . . . . . . Fabnet Peak Effective % 3 | . . . . . . . . . . . . . . 3 1 1 . . Autooverrided 1 | . . . . . . . . . . . . . . 1 . . . . Robots Rewired . | . . . . . . . . . . . . . . . . . . . Allies Hacked . | . . . . . . . . . . . . . . . . . . . Hacks Repelled . | . . . . . . . . . . . . . . . . . . . Allies | -11 -10 -9 -8 -7 -7 -6 -6 -6 -6 -5 -5 -5 -5 -4 -3 -3 -2 -1 -------- Run | Yrd Mat Mat Mat Fac DSF Fac Was Fac DSF Fac Was Fac DSF Fac Res DSF Res Acc Total Allies 3 | . . . . . . . . . . 1 . . . 1 . . 1 . Largest Group 1 | . . . . . . . . . . 1 . . . . . . 1 . Highest-Rated Group 26 | . . . . . . . . . . 26 . . . . . . 26 . Highest-Rated Ally 26 | . . . . . . . . . . 26 . . . . . . 26 . Total Orders . | . . . . . . . . . . . . . . . . . . . Ally Attacks . | . . . . . . . . . . . . . . . . . . . Total Damage . | . . . . . . . . . . . . . . . . . . . Kills . | . . . . . . . . . . . . . . . . . . . Allies Corrupted . | . . . . . . . . . . . . . . . . . . . Allies Melted . | . . . . . . . . . . . . . . . . . . . Intel | -11 -10 -9 -8 -7 -7 -6 -6 -6 -6 -5 -5 -5 -5 -4 -3 -3 -2 -1 ------- Run | Yrd Mat Mat Mat Fac DSF Fac Was Fac DSF Fac Was Fac DSF Fac Res DSF Res Acc Active Infowar (turns) 607 | . . . . . 26 80 14 14 3 101 15 18 2 54 72 5 92 111 Sensors 71 | . . . . . . . . . . 71 . . . . . . . . Terrain 150 | . . . . . . . . . . 3 . . . 36 . . . 111 Structural 285 | . . . . . . . . . . 27 15 18 2 54 72 5 92 . Jamming 137 | . . . . . 26 80 14 14 3 . . . . . . . . . Robot Analysis Total . | . . . . . . . . . . . . . . . . . . . Derelict Logs Recovered . | . . . . . . . . . . . . . . . . . . . Drone Launches . | . . . . . . . . . . . . . . . . . . . Drone Recoveries . | . . . . . . . . . . . . . . . . . . . Exploration | -11 -10 -9 -8 -7 -7 -6 -6 -6 -6 -5 -5 -5 -5 -4 -3 -3 -2 -1 ------------- Run | Yrd Mat Mat Mat Fac DSF Fac Was Fac DSF Fac Was Fac DSF Fac Res DSF Res Acc Turns Passed 1051 | 13 76 68 48 8 56 82 14 14 13 251 15 18 13 55 72 5 94 136 Spaces Moved 3551 | 23 134 147 163 11 129 253 72 74 58 749 82 47 55 228 278 30 604 414 Core 166 | 23 134 9 . . . . . . . . . . . . . . . . Treads . | . . . . . . . . . . . . . . . . . . . Legs . | . . . . . . . . . . . . . . . . . . . Wheels . | . . . . . . . . . . . . . . . . . . . Hover 23 | . . 23 . . . . . . . . . . . . . . . . Flight 3362 | . . 115 163 11 129 253 72 74 58 749 82 47 55 228 278 30 604 414 Fastest Speed 11 | 50 50 29 23 20 20 17 19 19 19 16 16 16 16 13 13 14 11 14 Average Speed 18 | 50 50 38 23 20 20 17 19 19 19 16 16 16 16 13 13 14 11 15 Slowest Speed 80 | 50 50 80 23 20 20 19 19 19 19 23 16 16 16 19 14 14 16 19 Overloaded Moves . | . . . . . . . . . . . . . . . . . . . Propulsion Burnouts . | . . . . . . . . . . . . . . . . . . . Robots Hopped 37 | . . 3 3 . . 8 . 1 1 5 . . . 1 1 . 10 4 Potential Cave-ins . | . . . . . . . . . . . . . . . . . . . Cave-ins Triggered . | . . . . . . . . . . . . . . . . . . . Exploration Rate (%) 33 | 3 32 24 28 1 85 12 71 5 82 33 72 3 65 13 14 43 29 16 Regions Visited 18 Branch Regions . Pre-discovered Areas . | . . . . . . . . . . . . . . . . . . . Known Exits Taken 4 | . . . . 1 . . . 1 . . . 1 . . 1 . . . Unknown Exits Taken 6 | 1 1 1 1 . . . . . . . . . . 1 . . 1 . Scrap Searched . | . . . . . . . . . . . . . . . . . . . Spaces Dug 24 | . . . . . . . . . . 9 . 4 . 4 2 . 1 4 Terrain Destroyed 79 | . . . . . . . . . . 64 . 4 . 4 2 . 1 4 Melee 24 | . . . . . . . . . . 9 . 4 . 4 2 . 1 4 Projectile . | . . . . . . . . . . . . . . . . . . . AOE 55 | . . . . . . . . . . 55 . . . . . . . . Terrain Rammed . | . . . . . . . . . . . . . . . . . . . Walls Destroyed . | . . . . . . . . . . . . . . . . . . . Machines Disabled . | . . . . . . . . . . . . . . . . . . . Actions | -11 -10 -9 -8 -7 -7 -6 -6 -6 -6 -5 -5 -5 -5 -4 -3 -3 -2 -1 --------- Run | Yrd Mat Mat Mat Fac DSF Fac Was Fac DSF Fac Was Fac DSF Fac Res DSF Res Acc Total 3802 | 23 142 154 169 14 162 284 71 72 57 816 83 50 58 241 298 29 610 469 Wait 64 | . . . . . . 19 . . . 3 . . . . 1 . 4 37 Move 3468 | 22 133 140 157 10 128 240 71 71 55 739 81 46 54 226 275 29 586 405 Hop 31 | . . 3 2 . . 5 . 1 1 5 . . . 1 1 . 8 4 Pick Up 35 | 1 3 2 3 . 4 8 . . . 6 . . 1 . 1 . 3 3 Fast Attach 22 | . 1 3 . . 2 . . . 1 3 1 . . 4 4 . 1 2 Attach 30 | . . . 3 2 . 5 . . . 4 . . . 3 2 . 4 7 Detach 14 | . 1 1 . . 3 1 . . . 1 . . . . 3 . 1 3 Swap 31 | . . 2 3 2 8 3 . . . 6 . . 2 2 3 . . . Drop 26 | . 1 3 1 . 8 3 . . . 6 1 . 1 . 1 . . 1 Fire 4 | . . . . . . . . . . 4 . . . . . . . . Melee 56 | . . . . . . . . . . 31 . 4 . 5 7 . 2 7 Ram 4 | . 3 . . . . . . . . . . . . . . . 1 . Kick . | . . . . . . . . . . . . . . . . . . . Crush . | . . . . . . . . . . . . . . . . . . . Escape Stasis 17 | . . . . . 9 . . . . 8 . . . . . . . . Rewire . | . . . . . . . . . . . . . . . . . . . Trap . | . . . . . . . . . . . . . . . . . . . Miscellaneous . | . . . . . . . . . . . . . . . . . . . Route ------- -11/Scrapyard -10/Materials -9/Materials -8/Materials -7/Factory -7/DSF -6/Factory -6/Waste -6/Factory -6/DSF -5/Factory (discovered 2 exits: Upp x2) -5/Waste -5/Factory -5/DSF -4/Factory -3/Research -3/DSF -2/Research (discovered 3 exits: *Acc / Tes x2) -1/Access To Epsilon Eridani History --------- Turn | Location | Event 5 | -11/Scrapyard | Discovered new exit (range 16) 14 | -11/Scrapyard | Entered Materials 15 | -10/Materials | Met a group of wandering Federalists 86 | -10/Materials | Discovered new exit (range 8) 90 | -10/Materials | Entered another Materials area 90 | -9/Materials | Evolved 2 slots: Propulsion x1, Utility x1 154 | -9/Materials | Discovered new exit (range 16) 158 | -9/Materials | Entered another Materials area 158 | -8/Materials | Evolved 2 slots: Propulsion x2 202 | -8/Materials | Discovered new exit (range 15) 206 | -8/Materials | Entered Factory 206 | -7/Factory | Evolved 2 slots: Power x1, Propulsion x1 213 | -7/Factory | Identified exit to DSF 214 | -7/Factory | Entered DSF 215 | -7/DSF | Joined Warlord attack on 0b10 via DSF 234 | -7/DSF | Discovered new exit (range 16) 245 | -7/DSF | Additional patrols routed to DSF 270 | -7/DSF | Entered Factory 270 | -6/Factory | Evolved 2 slots: Propulsion x1, Utility x1 350 | -6/Factory | 10 allies followed out of DSF 352 | -6/Factory | Sucked down chute 352 | -6/Factory | Entered Waste 354 | -6/Waste | Spotted C-40 Crusher 361 | -6/Waste | Spotted C-40 Crusher 361 | -6/Waste | Spotted C-40 Crusher 363 | -6/Waste | Spotted C-40 Crusher 363 | -6/Waste | Discovered new exit (range 16) 364 | -6/Waste | Spotted C-40 Crusher 366 | -6/Waste | Entered Factory 380 | -6/Factory | Identified exit to DSF 380 | -6/Factory | Entered DSF 390 | -6/DSF | Discovered new exit (range 14) 393 | -6/DSF | Entered Factory 393 | -5/Factory | Evolved 2 slots: Propulsion x1, Utility x1 642 | -5/Factory | Identified exit to Upper Caves 644 | -5/Factory | Sucked down chute 644 | -5/Factory | Entered Waste 648 | -5/Waste | Spotted C-40 Crusher 649 | -5/Waste | Spotted C-40 Crusher 650 | -5/Waste | Spotted C-40 Crusher 652 | -5/Waste | Spotted C-40 Crusher 652 | -5/Waste | Spotted C-40 Crusher 654 | -5/Waste | Discovered new exit (range 16) 654 | -5/Waste | Spotted C-40 Crusher 657 | -5/Waste | Found Prototype Launcher 657 | -5/Waste | Identified Hellfire Missile Launcher 659 | -5/Waste | Entered Factory 677 | -5/Factory | Identified exit to DSF 677 | -5/Factory | Entered DSF 688 | -5/DSF | Discovered new exit (range 13) 690 | -5/DSF | Entered Factory 690 | -4/Factory | Evolved 2 slots: Propulsion x1, Utility x1 744 | -4/Factory | Discovered new exit (range 4) 745 | -4/Factory | Entered Research 745 | -3/Research | Evolved 2 slots: Power x1, Utility x1 817 | -3/Research | Identified exit to DSF 817 | -3/Research | Entered DSF 819 | -3/DSF | Discovered new exit (range 16) 822 | -3/DSF | Entered Research 822 | -2/Research | Evolved 2 slots: Propulsion x1, Utility x1 854 | -2/Research | Spotted B-90 Cyclops 855 | -2/Research | Imp. System Shield fried by hacking feedback 876 | -2/Research | Central database locked down 892 | -2/Research | Spotted B-90 Cyclops 902 | -2/Research | Identified exit to Testing 908 | -2/Research | Discovered new exit (range 5) 916 | -2/Research | Entered Access 916 | -1/Access | Evolved 2 slots: Utility x2 946 | -1/Access | Lost 11 parts (1p4n6u) 976 | -1/Access | Spotted B-99 Colossus 976 | -1/Access | Spotted B-99 Colossus 1049 | -1/Access | Discovered new exit (range 4) 1052 | *** | Escaped! Last Messages --------------- disabled. 01033_ Knocked back. 01033_ Penetrated by Slug. 01033_ Slug penetrates Sealed Heavy Doors. 01036_ Knocked back. 01036_ Slug penetrates Sealed Heavy Doors. 01036_ Penetrated by Slug. 01040_ Knocked back. 01040_ Slug penetrates Sealed Heavy Doors. 01040_ Penetrated by Slug. 01040_ Slug penetrates Sealed Heavy Doors. 01043_ Penetrated by Slug. 01047_ Knocked back. 01047_ Slug penetrates Sealed Heavy Doors. 01047_ Penetrated by Slug. 01047_ Slug penetrates Main Access Shell. 01049_ P-80 Master resets B-99 Colossus, system corruption cleaned. 01049_ Main Access Shell breached. 01049_ EXIT=FOUND Map ----- +----------------------------------------------------+ | #### ######"" ! # "##+#############+##### | | ???# + ==% # # ????# | | ???#### ###### * # # = ??# | | ??????# #????# " # " ## "" | | ????#?# #????# + #""" ##"" "" | | ?????# #????#########" # """ ##"" """""" | | ??????# #????????????## # " ##"" """""" | | ??????# #?????????????# # ##T "" | | ???#??# #???#??#?????## # ##"" "" | | ??????# #?#????????#### ###########"" | | ####### #??????????# #??????#"" | | #/#########??# #??????# | | # #??# ##?????# | | # #??# #??????############# | | # ##?# #??????#?????????? ? | | " #??#% #??????????????????? | | # #??# #??????????????????? | | # ! #??#""%"""""""#??????????????????? | | #############??" "?????????????????????????? | | ###+### ####??????"%"?????????????????????????? | | " #???????#"" """""""#??????????????????? | | #???????# #??????????????????? | | ####### #??????## """""" #?????#????????????? | | ?????## ##???????# " "?????????????????????? | | ??????# #????????# " "" " ????????????????????? | | " ????# #????????# "@ "?????????????????????? | | " #??## #????????# " "?????????????????????? | | " #???# #???????## """"""?????????????????????? | | S #???# #????????# ??????????????????????????? | | " #???# #????????# ??????????????????????????? | | " ????# #??????#?""""""""""""??????????????????? | | "??????# #??????#?#"" #??????????????????? | | ???????# ##???????#"" #??????????????????? | | ???????# #?????#??#"" #??????????????????? | | ? ????# #????????#T #??????????????????? | | ?##????# #????????#" #??????????????????? | | ??????## ##???????#"" #??????????????????? | | ??????# #########"" ###????????????????? | | ??????# " ???????????? | | ??????# ???????????? | | ???#??# ##########################????????????? | | ??????######???#???#?????????????????????????????? | | ???? ????????????????????????????????????????????? | | ????? ???????????????????????????????????????????? | | ?????????????????????????????????????????????????? | | ?????????????????????????????????????????????????? | | ?????????????????????????????????????????????????? | | ?????????????????????????????????????????????????? | | ?????????????????????????????????????????????????? | | ?????????????????????????????????????????????????? | +----------------------------------------------------+ Best States ------------- Heat Dissipation 52 Coolant Potential 100 Energy Generation 53 Energy Capacity 445 Matter Stores 300 Matter Capacity 300 Sight Range 16 Robot Scan Range 15 Terrain Scan Range 20 Terrain Scan Density 10 Jamming Range 12 Additional Mass Support 12 Armor Coverage 600 Propulsion Shielding 66 Evasion (%) 66 Offensive Hacking 12 Defensive Hacking 26 Item Schematics ----------------- Tesla Rifle | -2/Research | Extracted Quantum Reactor | -2/Research | Extracted Ionic Axe | -2/Research | Extracted Imp. Gyrokinetic Inverter | -2/Research | Extracted HERF Cannon | -2/Research | Extracted Robot Schematics ------------------ None Fabricated ------------ Nothing Repaired ---------- Nothing Studied --------- Mic. Nuclear Core | -6/Factory | Hacked Lgt. Angular Momentum Engine | -3/Research | Hacked Lgt. Deuterium Engine | -2/Research | Hacked Neutrino Core | -2/Research | Hacked Alien Tech Used ----------------- None Achievements -------------- Below Fishing Tech Challenges ------------ None Game ------ Seed DispersalGunLink Manual? 0 Play Time 01:01:29 Cumulative 324.2 hours Start 2026.07.13 @ 10:28:55 End 2026.07.13 @ 17:03:49 Sessions 1 Manual Loads 0 Difficulty Rogue Special Mode None Game No. 395 Rogue 395 Adventurer 0 Explorer 0 Win Type 0 Total 22 Types 14/0/3/1/1/0/1/1/0/1 Lore% 78 Gallery% 74 Achievement% 65 Wizard Run 0 Options --------- Layout 1 ASCII 0 Keyboard 1 Movement Arrows Keybinds 0 Fullscreen 2 Font 36/Smallcaps Map View 50x40 Zoom Use 0% Tactical HUD 1 Map Filters NONE Filters NONE Steam 1 RUN: 0fd8a541-5002-4b92-a07b-24281cb9ed6a